lending/lending_fUSD_20250122
["ID","MTS","AMOUNT","RATE_DAILY","PERIOD"]
[349957625,1737535865263,-500.0,0.00020816,2]
[349957626,1737535865276,-588.0482145,0.00020816,2]
[349957627,1737535865285,-500.0,0.00020816,2]
[349957628,1737535865295,-565.86103798,0.00020816,2]
[349957629,1737535865305,-500.0,0.00020816,2]
[349957630,1737535865314,-500.0,0.00020816,2]
[349957631,1737535865324,-500.0,0.00020816,2]
[349957632,1737535865333,-822.84,0.00020816,2]
[349957633,1737535865343,-984.18,0.00020816,2]
[349957634,1737535865352,-1080.22,0.00020816,2]
[349957635,1737535865362,-151.0,0.00020816,2]
[349957636,1737535865372,-500.0,0.00020816,2]
[349957637,1737535865382,-500.0,0.00020816,2]
[349957638,1737535865391,-500.0,0.00020816,2]
[349957639,1737535865401,-500.0,0.00020816,2]
[349957640,1737535865410,-500.0,0.00020816,2]
[349957641,1737535865420,-502.19,0.00020816,2]
[349957642,1737535865429,-500.0,0.00020816,2]
[349957643,1737535865438,-500.0,0.00020816,2]
[349957644,1737535865448,-543.73,0.00020816,2]
[349957645,1737535865458,-500.0,0.00020816,2]
[349957646,1737535865467,-500.0,0.00020816,2]
[349957647,1737535865477,-1225.68,0.00020816,2]
[349957648,1737535865486,-1080.05,0.00020816,2]
[349957649,1737535865495,-500.0,0.00020816,2]
[349957650,1737535865504,-1315.5,0.00020816,2]
[349957651,1737535865515,-5326.32,0.00020816,2]
[349957652,1737535865525,-1134.22,0.00020816,2]
[349957653,1737535865534,-8872.35,0.00020816,2]
[349957654,1737535865545,-548.7,0.00020816,2]
[349957655,1737535865556,-500.0,0.00020816,2]
[349957656,1737535865565,-1108.55,0.00020816,2]
[349957657,1737535865575,-500.0,0.00020816,2]
[349957658,1737535865584,-500.0,0.00020816,2]
[349957659,1737535865594,-533.36,0.00020816,2]
[349957660,1737535865603,-879.16,0.00020816,2]
[349957661,1737535865613,-666.0,0.00020816,2]
[349957662,1737535865623,-500.0,0.00020816,2]
[349957663,1737535865632,-2887.3,0.00020816,2]
[349957664,1737535865642,-500.0,0.00020816,2]
[349957665,1737535865651,-500.0,0.00020816,2]
[349957666,1737535865661,-1192.26,0.00020816,2]
[349957667,1737535865670,-1613.65,0.00020816,2]
[349957668,1737535865680,-840.93,0.00020816,2]
[349957669,1737535865689,-1815.41,0.00020816,2]
[349957670,1737535865699,-627.34,0.00020816,2]
[349957671,1737535865708,-552.73,0.00020816,2]
[349957672,1737535865718,-500.0,0.00020816,2]
[349957673,1737535865727,-1000.0,0.00020816,2]
[349957674,1737535865736,-168.074362,0.00020816,2]
[349957675,1737535865745,-168.074362,0.00020816,2]
[349957676,1737535865755,-844.08,0.00020816,2]
[349957677,1737535865769,-500.0,0.00020816,2]
[349957678,1737535865778,-500.0,0.00020816,2]
[349957679,1737535865787,-500.0,0.00020816,2]
[349957680,1737535865797,-2817.94,0.00020816,2]
[349957681,1737535865806,-1195.95,0.00020816,2]
[349957682,1737535865815,-500.0,0.00020816,2]
[349957683,1737535865824,-2298.19,0.00020816,2]
[349957684,1737535865940,-721.13,0.00020816,2]
[349957685,1737535865950,-537.9,0.00020816,2]
[349957686,1737535865960,-1122.6,0.00020816,2]
[349957687,1737535865969,-1284.0,0.00020816,2]
[349957688,1737535865981,-584.46,0.00020816,2]
[349957689,1737535865991,-793.95,0.00020817,2]
[349957690,1737535866001,-710.25,0.00020817,2]
[349957691,1737535866012,-500.0,0.00020817,2]
[349957692,1737535866021,-500.0,0.00020817,2]
[349957693,1737535866030,-500.0,0.00020817,2]
[349957694,1737535866039,-1448.78,0.00020817,2]
[349957695,1737535866048,-1032.82,0.00020817,2]
[349957696,1737535866057,-1224.48,0.00020817,2]
[349957697,1737535866066,-565.46,0.00020817,2]
[349957698,1737535866075,-500.0,0.00020817,2]
[349957699,1737535866084,-500.0,0.00020817,2]
[349957700,1737535866094,-500.0,0.00020817,2]
[349957701,1737535866103,-500.0,0.00020817,2]
[349957702,1737535866112,-57656.89264445,0.000209,2]
[349957703,1737535866122,-205.26902049,0.000209,2]
[349957704,1737535866131,-169.61,0.00020921,2]
[349957705,1737535866140,-154.04,0.00020968,2]
[349957706,1737535866149,-5173.54518264,0.0002098,5]
[349957707,1737535866159,-179.38451183,0.00020983,2]
[349957708,1737535866168,-3010.0,0.00020986,2]
[349957709,1737535866177,-150.0,0.00020986,4]
[349957710,1737535866186,-150.0,0.00020986,4]
[349957711,1737535866195,-1031.4948883,0.00020999,5]
[349957712,1737535866207,-500.0,0.00020999,2]
[349957713,1737535866217,-793956.42702257,0.00021,15]
[349957714,1737535866227,-26032.4537058,0.00021,2]
[349957715,1737535866236,-2215.93258516,0.00021,2]
[349957716,1737535866246,-9157.95413342,0.00021,2]
[349957717,1737535866256,-193.33057919,0.00021,2]
[349957718,1737535866265,-200.0,0.00021,15]
[349957719,1737535866275,-200.0,0.00021,15]
[349957720,1737535866284,-200.0,0.00021,15]
[349957721,1737535866294,-200.0,0.00021,15]
[349957722,1737535866304,-199.79,0.00021,16]
[349957723,1737535866314,-168.025536,0.00021,2]
[349957724,1737535866323,-168.074362,0.00021,2]
[349957725,1737535866332,-168.074362,0.00021,2]
[349957726,1737535866341,-205.26902049,0.00021011,2]
[349957727,1737535866350,-864.33043042,0.00021047,2]
[349957728,1737535866359,-432.61797383,0.00021047,2]
[349957729,1737535866369,-350.0,0.00021068,2]
[349957730,1737535866379,-3688.9978,0.0002108,2]
[349957731,1737535866388,-500.0,0.00021089,2]
[349957732,1737535866397,-687.92,0.00021089,2]
[349957733,1737535866409,-829.09,0.00021089,2]
[349957734,1737535866420,-500.0,0.00021089,2]
[349957735,1737535866430,-500.0,0.00021089,2]
[349957736,1737535866440,-706.98,0.00021089,2]
[349957737,1737535866450,-524.39,0.00021089,2]
[349957738,1737535866461,-500.0,0.00021089,2]
[349957739,1737535866471,-500.0,0.00021089,2]
[349957740,1737535866480,-555.75,0.00021089,2]
[349957741,1737535866490,-882.85,0.00021089,2]
[349957742,1737535866500,-974.81,0.00021089,2]
[349957743,1737535866510,-500.0,0.00021089,2]
[349957744,1737535866519,-500.0,0.00021089,2]
[349957745,1737535866529,-1033.33,0.00021089,2]
[349957746,1737535866538,-881.186028,0.00021089,2]
[349957747,1737535866548,-668.82,0.00021089,2]
[349957748,1737535866557,-584.92,0.00021089,2]
[349957749,1737535866567,-597.75,0.00021089,2]
[349957750,1737535866577,-1383.258647,0.00021089,2]
[349957751,1737535866586,-500.0,0.00021089,2]
[349957752,1737535866596,-500.0,0.00021089,2]
[349957753,1737535866606,-1189.34,0.00021089,2]
[349957754,1737535866615,-500.0,0.00021089,2]
[349957755,1737535866625,-500.0,0.00021089,2]
[349957756,1737535866634,-708.96,0.00021089,2]
[349957757,1737535866644,-664.95,0.00021089,2]
[349957758,1737535866653,-1395.76,0.00021089,2]
[349957759,1737535866664,-567.8,0.00021089,2]
[349957760,1737535866674,-500.0,0.00021089,2]
[349957761,1737535866687,-1026.06,0.00021089,2]
[349957762,1737535866707,-500.0,0.00021089,2]
[349957763,1737535866723,-500.0,0.00021089,2]
[349957764,1737535866744,-553.55,0.00021089,2]
[349957765,1737535866762,-500.0,0.00021089,2]
[349957766,1737535866778,-1399.0,0.00021089,2]
[349957767,1737535866797,-897.03,0.00021089,2]
[349957768,1737535866816,-500.0,0.00021089,2]
[349957769,1737535866834,-880.39,0.00021089,2]
[349957770,1737535866852,-500.0,0.00021089,2]
[349957771,1737535866871,-1082.05,0.00021089,2]
[349957772,1737535866887,-1124.96,0.00021089,2]
[349957773,1737535866914,-500.0,0.00021089,2]
[349957774,1737535866927,-791.67,0.00021089,2]
[349957775,1737535866947,-659.65,0.00021089,2]
[349957776,1737535866963,-897.68,0.00021089,2]
[349957777,1737535866977,-1008.18,0.00021089,2]
[349957778,1737535866992,-1914.1,0.00021089,2]
[349957779,1737535867008,-500.0,0.00021089,2]
[349957780,1737535867029,-805.46,0.00021089,2]
[349957781,1737535867045,-2511.45,0.00021089,2]
[349957782,1737535867060,-500.0,0.00021089,2]
[349957783,1737535867074,-500.0,0.00021089,2]
[349957784,1737535867089,-1206.52,0.00021089,2]
[349957785,1737535867104,-4007.33,0.00021089,2]
[349957786,1737535867118,-2492.62,0.00021089,2]
[349957787,1737535867135,-1678.2,0.00021089,2]
[349957788,1737535867156,-1512.08,0.00021089,2]
[349957789,1737535867171,-500.0,0.00021089,2]
[349957790,1737535867186,-956.5,0.00021089,2]
[349957791,1737535867201,-500.0,0.00021089,2]
[349957792,1737535867216,-500.0,0.00021089,2]
[349957793,1737535867230,-859.9,0.00021089,2]
[349957794,1737535867244,-564.94,0.00021089,2]
[349957795,1737535867259,-500.0,0.00021089,2]
[349957796,1737535867274,-500.0,0.00021089,2]
[349957797,1737535867288,-790.06,0.00021089,2]
[349957798,1737535867302,-2269.74,0.00021089,2]
[349957799,1737535867317,-500.0,0.00021089,2]
[349957800,1737535867330,-4879.48,0.00021089,2]
[349957801,1737535867344,-500.0,0.00021089,2]
[349957802,1737535867358,-1144.32,0.00021089,2]
[349957803,1737535867372,-500.0,0.00021089,2]
[349957804,1737535867388,-2054.82,0.00021089,2]
[349957805,1737535867402,-827.92,0.00021089,2]
[349957806,1737535867419,-1961.71,0.00021089,2]
[349957807,1737535867433,-1416.44,0.00021089,2]
[349957808,1737535867449,-3220.53,0.00021089,2]
[349957809,1737535867465,-2309.19,0.00021089,2]
[349957810,1737535867484,-1086.97,0.00021089,2]
[349957811,1737535867500,-836.64,0.00021089,2]
[349957812,1737535867515,-1125.48,0.00021089,2]
[349957813,1737535867529,-1355.86,0.00021089,2]
[349957814,1737535867544,-537.78,0.00021089,2]
[349957815,1737535867559,-644.18,0.00021089,2]
[349957816,1737535867575,-4222.06,0.00021089,2]
[349957817,1737535867593,-1148.64,0.00021089,2]
[349957818,1737535867611,-1996.49,0.00021089,2]
[349957819,1737535867626,-3033.92,0.00021089,2]
[349957820,1737535867641,-500.0,0.00021089,2]
[349957821,1737535867656,-2532.04,0.00021089,2]
[349957822,1737535867670,-574.92,0.00021089,2]
[349957823,1737535867685,-940.76,0.00021089,2]
[349957824,1737535867700,-500.0,0.00021089,2]
[349957825,1737535867716,-1198.58,0.00021089,2]
[349957826,1737535867730,-1231.92,0.00021089,2]
[349957827,1737535867744,-1021.16,0.00021089,2]
[349957828,1737535867759,-500.0,0.00021089,2]
[349957829,1737535867773,-850.43,0.00021089,2]
[349957830,1737535867789,-626.58,0.00021089,2]
[349957831,1737535867803,-1522.34,0.00021089,2]
[349957832,1737535867813,-1365.0,0.00021089,2]
[349957833,1737535867822,-603.87,0.00021089,2]
[349957834,1737535867832,-500.0,0.00021089,2]
[349957835,1737535867841,-1288.07,0.00021089,2]
[349957836,1737535867850,-844.42,0.00021089,2]
[349957837,1737535868003,-591.78,0.00021089,2]
[349957838,1737535868071,-566.83,0.00021089,2]
[349957839,1737535868083,-537.66,0.00021089,2]
[349957840,1737535868094,-511.79,0.00021089,2]
[349957841,1737535868103,-913.82,0.00021089,2]
[349957842,1737535868113,-2700.97,0.00021089,2]
[349957843,1737535868122,-500.0,0.00021089,2]
[349957844,1737535868132,-500.0,0.00021089,2]
[349957845,1737535868141,-1158.45,0.00021089,2]
[349957846,1737535868151,-500.0,0.00021089,2]
[349957847,1737535868161,-872.83,0.00021089,2]
[349957848,1737535868170,-2209.36,0.00021089,2]
[349957849,1737535868180,-3528.61,0.00021089,2]
[349957850,1737535868189,-773.09,0.00021089,2]
[349957851,1737535868198,-529.36359239,0.00021089,2]
[349957852,1737535868210,-614.04,0.00021089,2]
[349957853,1737535868219,-1417.55,0.00021089,2]
[349957854,1737535868229,-1067.42,0.00021089,2]
[349957855,1737535868238,-2595.8,0.00021089,2]
[349957856,1737535868248,-633.97,0.00021089,2]
[349957857,1737535868258,-500.0,0.00021089,2]
[349957858,1737535868267,-628.26,0.00021089,2]
[349957859,1737535868276,-1154.33,0.00021089,2]
[349957860,1737535868286,-500.0,0.00021089,2]
[349957861,1737535868295,-500.0,0.00021089,2]
[349957862,1737535868305,-1232.72,0.00021089,2]
[349957863,1737535868315,-4385.76,0.00021089,2]
[349957864,1737535868325,-500.0,0.00021089,2]
[349957865,1737535868335,-1178.01,0.00021089,2]
[349957866,1737535868344,-500.0,0.00021089,2]
[349957867,1737535868354,-851.04,0.00021089,2]
[349957868,1737535868364,-844.74,0.00021089,2]
[349957869,1737535868374,-500.0,0.00021089,2]
[349957870,1737535868384,-2089.41,0.00021089,2]
[349957871,1737535868394,-577.47,0.00021089,2]
[349957872,1737535868404,-690.97,0.00021089,2]
[349957873,1737535868414,-1722.38,0.00021089,2]
[349957874,1737535868425,-1001.69,0.00021089,2]
[349957875,1737535868434,-799.05,0.00021089,2]
[349957876,1737535868446,-1433.52,0.00021089,2]
[349957877,1737535868456,-680.57,0.00021089,2]
[349957878,1737535868465,-866.15,0.00021089,2]
[349957879,1737535868475,-500.0,0.00021089,2]
[349957880,1737535868485,-500.0,0.00021089,2]
[349957881,1737535868495,-525.26,0.00021089,2]
[349957882,1737535868505,-658.51,0.00021089,2]
[349957883,1737535868514,-1460.47,0.00021089,2]
[349957884,1737535868524,-500.0,0.00021089,2]
[349957885,1737535868534,-1012.24,0.00021089,2]
[349957886,1737535868543,-703.88,0.00021089,2]
[349957887,1737535868553,-500.0,0.00021089,2]
[349957888,1737535868563,-500.0,0.00021089,2]
[349957889,1737535868572,-2713.11,0.00021089,2]
[349957890,1737535868582,-2398.07,0.00021089,2]
[349957891,1737535868591,-508.44,0.00021089,2]
[349957892,1737535868601,-2259.96,0.00021089,2]
[349957893,1737535868611,-500.0,0.00021089,2]
[349957894,1737535868620,-500.0,0.00021089,2]
[349957895,1737535868630,-1542.11,0.00021089,2]
[349957896,1737535868640,-1046.31,0.00021089,2]
[349957897,1737535868650,-876.07,0.00021089,2]
[349957898,1737535868660,-2654.27,0.00021089,2]
[349957899,1737535868670,-500.0,0.00021089,2]
[349957900,1737535868679,-588.37,0.00021089,2]
[349957901,1737535868688,-1263.25,0.00021089,2]
[349957902,1737535868698,-220.0,0.0002109,2]
[349957903,1737535868709,-623.1,0.0002109,2]
[349957904,1737535868718,-500.0,0.0002109,2]
[349957905,1737535868727,-500.0,0.0002109,2]
[349957906,1737535868737,-500.0,0.0002109,2]
[349957907,1737535868747,-500.0,0.0002109,2]
[349957908,1737535868756,-500.0,0.0002109,2]
[349957909,1737535868765,-500.0,0.0002109,2]
[349957910,1737535868774,-906.12,0.0002109,2]
[349957911,1737535868784,-500.0,0.0002109,2]
[349957912,1737535868793,-500.0,0.0002109,2]
[349957913,1737535868803,-500.0,0.0002109,2]
[349957914,1737535868812,-557.75,0.0002109,2]
[349957915,1737535868822,-500.0,0.0002109,2]
[349957916,1737535868832,-500.0,0.0002109,2]
[349957917,1737535868842,-500.0,0.0002109,2]
[349957918,1737535868851,-523.97,0.0002109,2]
[349957919,1737535868861,-500.0,0.0002109,2]
[349957920,1737535868870,-684.22,0.0002109,2]
[349957921,1737535868879,-500.0,0.0002109,2]
[349957922,1737535868889,-500.76,0.0002109,2]
[349957923,1737535868898,-500.0,0.0002109,2]
[349957924,1737535868908,-500.0,0.0002109,2]
[349957925,1737535868917,-500.0,0.0002109,2]
[349957926,1737535868928,-500.0,0.0002109,2]
[349957927,1737535868940,-500.0,0.0002109,2]
[349957928,1737535868950,-500.0,0.0002109,2]
[349957929,1737535868961,-500.0,0.0002109,2]
[349957930,1737535868970,-891.46,0.0002109,2]
[349957931,1737535868981,-626.77,0.0002109,2]
[349957932,1737535868991,-974.67,0.0002109,2]
[349957933,1737535869001,-500.0,0.0002109,2]
[349957934,1737535869013,-500.0,0.0002109,2]
[349957935,1737535869022,-667.94,0.0002109,2]
[349957936,1737535869031,-1171.25,0.0002109,2]
[349957937,1737535869041,-720.08,0.0002109,2]
[349957938,1737535869050,-1121.27,0.0002109,2]
[349957939,1737535869059,-179.1134591,0.0002109,2]
[349957940,1737535869069,-761.43,0.0002109,2]
[349957941,1737535869078,-500.0,0.0002109,2]
[349957942,1737535869087,-885.44,0.0002109,2]
[349957943,1737535869098,-593.11,0.0002109,2]
[349957944,1737535869108,-810.91,0.0002109,2]
[349957945,1737535869117,-500.0,0.0002109,2]
[349957946,1737535869128,-797.59,0.0002109,2]
[349957947,1737535869138,-500.0,0.0002109,2]
[349957948,1737535869147,-500.0,0.0002109,2]
[349957949,1737535869157,-607.39,0.0002109,2]
[349957950,1737535869166,-500.0,0.0002109,2]
[349957951,1737535869175,-500.0,0.0002109,2]
[349957952,1737535869184,-500.0,0.0002109,2]
[349957953,1737535869193,-669.28,0.0002109,2]
[349957954,1737535869208,-500.0,0.0002109,2]
[349957955,1737535869218,-500.0,0.0002109,2]
[349957956,1737535869227,-593.65,0.0002109,2]
[349957957,1737535869236,-500.0,0.0002109,2]
[349957958,1737535869245,-500.0,0.0002109,2]
[349957959,1737535869254,-500.0,0.0002109,2]
[349957960,1737535869264,-822.84,0.0002109,2]
[349957961,1737535869274,-984.18,0.0002109,2]
[349957962,1737535869283,-1080.22,0.0002109,2]
[349957963,1737535869293,-500.0,0.0002109,2]
[349957964,1737535869302,-500.0,0.0002109,2]
[349957965,1737535869311,-500.0,0.0002109,2]
[349957966,1737535869320,-500.0,0.0002109,2]
[349957967,1737535869329,-500.0,0.0002109,2]
[349957968,1737535869338,-502.19,0.0002109,2]
[349957969,1737535869348,-500.0,0.0002109,2]
[349957970,1737535869358,-500.0,0.0002109,2]
[349957971,1737535869367,-543.73,0.0002109,2]
[349957972,1737535869377,-500.0,0.0002109,2]
[349957973,1737535869386,-500.0,0.0002109,2]
[349957974,1737535869395,-1225.68,0.0002109,2]
[349957975,1737535869405,-1080.05,0.0002109,2]
[349957976,1737535869414,-500.0,0.0002109,2]
[349957977,1737535869423,-1315.5,0.0002109,2]
[349957978,1737535869432,-5326.32,0.0002109,2]
[349957979,1737535869441,-1134.22,0.0002109,2]
[349957980,1737535869450,-8872.35,0.0002109,2]
[349957981,1737535869461,-548.7,0.0002109,2]
[349957982,1737535869471,-500.0,0.0002109,2]
[349957983,1737535869481,-1108.55,0.0002109,2]
[349957984,1737535869491,-500.0,0.0002109,2]
[349957985,1737535869500,-500.0,0.0002109,2]
[349957986,1737535869510,-533.36,0.0002109,2]
[349957987,1737535869521,-879.16,0.0002109,2]
[349957988,1737535869531,-666.0,0.0002109,2]
[349957989,1737535869540,-500.0,0.0002109,2]
[349957990,1737535869550,-2887.3,0.0002109,2]
[349957991,1737535869560,-500.0,0.0002109,2]
[349957992,1737535869570,-500.0,0.0002109,2]
[349957993,1737535869579,-1192.26,0.0002109,2]
[349957994,1737535869589,-1613.65,0.0002109,2]
[349957995,1737535869599,-840.93,0.0002109,2]
[349957996,1737535869608,-1815.41,0.0002109,2]
[349957997,1737535869618,-627.34,0.0002109,2]
[349957998,1737535869629,-552.73,0.0002109,2]
[349957999,1737535869639,-500.0,0.0002109,2]
[349958000,1737535869648,-1000.0,0.0002109,2]
[349958001,1737535869659,-844.08,0.0002109,2]
[349958002,1737535869669,-500.0,0.0002109,2]
[349958003,1737535869678,-500.0,0.0002109,2]
[349958004,1737535869688,-500.0,0.0002109,2]
[349958005,1737535869698,-2817.94,0.0002109,2]
[349958006,1737535869708,-1195.95,0.0002109,2]
[349958007,1737535869718,-500.0,0.0002109,2]
[349958008,1737535869727,-2298.19,0.0002109,2]
[349958009,1737535869737,-721.13,0.0002109,2]
[349958010,1737535869746,-537.9,0.0002109,2]
[349958011,1737535869755,-1122.6,0.0002109,2]
[349958012,1737535869765,-1284.0,0.0002109,2]
[349958013,1737535869775,-584.46,0.0002109,2]
[349958014,1737535869785,-793.95,0.00021091,2]
[349958015,1737535869793,-710.25,0.00021091,2]
[349958016,1737535869802,-500.0,0.00021091,2]
[349958017,1737535869811,-500.0,0.00021091,2]
[349958018,1737535869820,-500.0,0.00021091,2]
[349958019,1737535869831,-1448.78,0.00021091,2]
[349958020,1737535869840,-1032.82,0.00021091,2]
[349958021,1737535869850,-1224.48,0.00021091,2]
[349958022,1737535869859,-565.46,0.00021091,2]
[349958023,1737535869869,-500.0,0.00021091,2]
[349958024,1737535869878,-500.0,0.00021091,2]
[349958025,1737535869888,-500.0,0.00021091,2]
[349958026,1737535869897,-500.0,0.00021091,2]
[349958027,1737535869907,-1037.10875048,0.00021094,5]
[349958028,1737535869917,-260.39498155,0.00021095,2]
[349958029,1737535869926,-150.0,0.00021095,2]
[349958030,1737535869939,-2182.85,0.000211,2]
[349958031,1737535869949,-205.26902049,0.00021122,2]
[349958032,1737535869959,-150.0,0.00021122,2]
[349958033,1737535869968,-200.0,0.00021126,2]
[349958034,1737535869979,-500.0,0.00021136,2]
[349958035,1737535869989,-150.0,0.0002115,2]
[349958036,1737535869998,-179.38451183,0.00021167,2]
[349958037,1737535870008,-150.0,0.00021177,2]
[349958038,1737535870018,-268.35,0.00021178,2]
[349958039,1737535870028,-437.79,0.00021178,2]
[349958040,1737535870038,-150.0,0.00021178,2]
[349958041,1737535870047,-173.59,0.00021178,2]
[349958042,1737535870057,-982.04,0.00021178,2]
[349958043,1737535870067,-298.05,0.00021178,2]
[349958044,1737535870076,-150.0,0.00021178,2]
[349958045,1737535870086,-300.0,0.00021178,2]
[349958046,1737535870096,-150.0,0.00021178,2]
[349958047,1737535870106,-437.79,0.00021178,2]
[349958048,1737535870116,-298.05,0.00021178,2]
[349958049,1737535870126,-982.04,0.00021178,2]
[349958050,1737535870135,-150.0,0.00021178,2]
[349958051,1737535870145,-982.04,0.00021178,2]
[349958052,1737535870155,-298.05,0.00021178,2]
[349958053,1737535870164,-437.55,0.00021178,2]
[349958054,1737535870174,-982.04,0.00021178,2]
[349958055,1737535870183,-298.05,0.00021178,2]
[349958056,1737535870192,-150.0,0.00021178,2]
[349958057,1737535870202,-298.05,0.00021178,2]
[349958058,1737535870212,-319.61,0.00021178,2]
[349958059,1737535870223,-298.05,0.00021178,2]
[349958060,1737535870233,-298.05,0.00021178,2]
[349958061,1737535870243,-218.70303413,0.00021205,2]
[349958062,1737535870252,-155.41877841,0.00021205,2]
[349958063,1737535870262,-1000.0,0.00021217,2]
[349958064,1737535870272,-205.26902049,0.00021233,2]
[349958065,1737535870282,-168.69,0.00021249,2]
[349958066,1737535870291,-174.88996566,0.00021264,2]
[349958067,1737535870300,-500.0,0.00021273,2]
[349958068,1737535870310,-150.0,0.00021274,4]
[349958069,1737535870319,-1362.49,0.000213,2]
[349958070,1737535870329,-3945.092999,0.000213,2]
[349958071,1737535870339,-864.33043042,0.00021331,2]
[349958072,1737535870349,-432.61797383,0.00021331,2]
[349958073,1737535870359,-205.26902049,0.00021344,2]
[349958074,1737535870369,-179.38451183,0.0002135,2]
[349958075,1737535870379,-500.0,0.00021363,2]
[349958076,1737535870388,-687.92,0.00021363,2]
[349958077,1737535870398,-829.09,0.00021363,2]
[349958078,1737535870408,-500.0,0.00021363,2]
[349958079,1737535870417,-500.0,0.00021363,2]
[349958080,1737535870427,-706.98,0.00021363,2]
[349958081,1737535870437,-524.39,0.00021363,2]
[349958082,1737535870446,-500.0,0.00021363,2]
[349958083,1737535870457,-500.0,0.00021363,2]
[349958084,1737535870467,-555.75,0.00021363,2]
[349958085,1737535870477,-882.85,0.00021363,2]
[349958086,1737535870488,-974.81,0.00021363,2]
[349958087,1737535870498,-500.0,0.00021363,2]
[349958088,1737535870508,-500.0,0.00021363,2]
[349958089,1737535870519,-1033.33,0.00021363,2]
[349958090,1737535870529,-881.186028,0.00021363,2]
[349958091,1737535870538,-668.82,0.00021363,2]
[349958092,1737535870547,-584.92,0.00021363,2]
[349958093,1737535870557,-597.75,0.00021363,2]
[349958094,1737535870567,-1383.258647,0.00021363,2]
[349958095,1737535870577,-500.0,0.00021363,2]
[349958096,1737535870588,-500.0,0.00021363,2]
[349958097,1737535870598,-1189.34,0.00021363,2]
[349958098,1737535870609,-500.0,0.00021363,2]
[349958099,1737535870619,-500.0,0.00021363,2]
[349958100,1737535870629,-708.96,0.00021363,2]
[349958101,1737535870639,-664.95,0.00021363,2]
[349958102,1737535870649,-1395.76,0.00021363,2]
[349958103,1737535870658,-567.8,0.00021363,2]
[349958104,1737535870668,-500.0,0.00021363,2]
[349958105,1737535870678,-1026.06,0.00021363,2]
[349958106,1737535870688,-500.0,0.00021363,2]
[349958107,1737535870697,-500.0,0.00021363,2]
[349958108,1737535870832,-553.55,0.00021363,2]
[349958109,1737535870846,-500.0,0.00021363,2]
[349958110,1737535870856,-1399.0,0.00021363,2]
[349958111,1737535870866,-897.03,0.00021363,2]
[349958112,1737535870875,-500.0,0.00021363,2]
[349958113,1737535870884,-880.39,0.00021363,2]
[349958114,1737535870893,-500.0,0.00021363,2]
[349958115,1737535870903,-1082.05,0.00021363,2]
[349958116,1737535870912,-1124.96,0.00021363,2]
[349958117,1737535870922,-500.0,0.00021363,2]
[349958118,1737535870933,-791.67,0.00021363,2]
[349958119,1737535870944,-659.65,0.00021363,2]
[349958120,1737535870955,-897.68,0.00021363,2]
[349958121,1737535870964,-1008.18,0.00021363,2]
[349958122,1737535870973,-1914.1,0.00021363,2]
[349958123,1737535870986,-500.0,0.00021363,2]
[349958124,1737535870995,-805.46,0.00021363,2]